bitfinex-derivatives/quotes_SOLF0:USTF0_20250909
["timestamp","ask_amount","ask_price","bid_price","bid_amount"]
[1757387266256,7.88,212.1,211.98,4.194983]
[1757387266461,7.88,212.1,211.97,5.70478371]
[1757387266655,7.88,212.1,211.98,4.19421548]
[1757387266853,7.88,212.1,211.97,5.70478371]
[1757387266854,7.88,212.1,211.97,3.01]
[1757387267054,7.88,212.1,211.98,4.19421548]
[1757387267255,7.88,212.1,211.97,5.70478371]
[1757387267556,7.76,212.08,211.97,5.70478371]
[1757387268159,7.76,212.06,211.97,5.70478371]
[1757387268862,7.76,212.09,211.98,7.20283654]
[1757387269065,7.76,212.09,212.0,2.69478371]
[1757387269268,7.76,212.09,212.01,3.01]
[1757387272159,7.9632787,212.13,212.03,2.69478371]
[1757387272360,7.76,212.13,212.04,3.01]
[1757387273360,7.76,212.13,212.03,2.69478371]
[1757387273556,7.76,212.11,212.0,12.56478371]
[1757387273761,7.76,212.11,212.0,5.70478371]
[1757387277763,7.76,212.08,211.97,5.70478371]
[1757387278764,157.76,212.08,211.97,5.70478371]
[1757387286669,157.76,212.08,211.98,3.01]
[1757387286871,157.76,212.08,212.01,3.01]
[1757387287565,7.76,212.07,211.97,2.69478371]
[1757387289070,7.76,212.07,212.0,2.69478371]
[1757387289277,7.76,212.07,212.01,3.01]
[1757387292971,7.76,212.07,212.0,2.69478371]
[1757387293371,7.76,212.07,212.0,5.69478371]
[1757387293773,7.76,212.05,211.94,2.69478371]
[1757387293969,7.76,212.03,211.94,2.69478371]
[1757387294272,7.76,212.03,211.95,1.72459447]
[1757387294472,7.76,212.01,211.95,1.72459447]
[1757387295078,7.76,212.01,211.97,4.72459447]
[1757387297787,7.76,212.01,211.98,3.0]
[1757387298380,1.72459447,212.04,211.98,3.0]
[1757387298682,1.72459447,212.04,211.99,1.72459447]
[1757387299279,7.76,212.03,211.99,1.72459447]
[1757387299475,1.72459447,212.04,211.99,1.72459447]
[1757387299675,7.76,212.03,211.99,1.72459447]
[1757387299878,7.76,212.03,211.99,4.72459447]
[1757387300075,7.76,212.03,212.01,1.72459447]
[1757387300579,7.76,212.05,212.01,1.72459447]
[1757387300783,7.76,212.05,212.03,1.72459447]
[1757387301777,13.02849499,212.09,212.03,1.72459447]
[1757387301984,7.76,212.09,212.07,1.72459447]
[1757387302186,5.26849499,212.11,212.07,1.72459447]
[1757387302578,5.26849499,212.12,212.07,1.72459447]
[1757387302985,7.76,212.11,212.07,1.72459447]
[1757387303186,7.76,212.1,212.07,1.72459447]
[1757387304186,5.26849499,212.11,212.07,1.72459447]
[1757387304687,5.26849499,212.1,212.07,1.72459447]
[1757387304891,7.76,212.09,212.07,1.72459447]
[1757387305084,7.76,212.1,212.07,1.72459447]
[1757387305294,5.26849499,212.11,212.07,1.72459447]
[1757387305488,7.76,212.1,212.07,1.72459447]
[1757387305685,5.26849499,212.11,212.07,1.72459447]
[1757387305888,7.76,212.1,212.07,1.72459447]
[1757387306089,5.26849499,212.11,212.07,1.72459447]
[1757387306290,7.76,212.1,212.07,1.72459447]
[1757387306589,5.26849499,212.11,212.07,1.72459447]
[1757387306785,7.76,212.1,212.07,1.72459447]
[1757387307091,5.26849499,212.11,212.07,1.72459447]
[1757387307390,13.02849499,212.14,212.09,4.72459447]
[1757387307597,7.76,212.14,212.13,1.72459447]
[1757387307798,5.26849499,212.15,212.13,1.72459447]
[1757387307999,13.02849499,212.16,212.13,1.72459447]
[1757387308199,121.70849499,212.17,212.15,1.72459447]
[1757387308594,7.76,212.16,212.15,1.72459447]
[1757387309194,13.02849499,212.18,212.15,1.72459447]
[1757387309390,7.76,212.2,212.17,1.72459447]
[1757387309599,7.76,212.2,212.19,1.72459447]
[1757387310297,7.76,212.23,212.19,1.72459447]
[1757387310695,5.26849499,212.24,212.19,1.72459447]
[1757387310893,7.76,212.23,212.19,1.72459447]
[1757387311193,121.66849499,212.25,212.19,1.72459447]
[1757387312002,7.76,212.24,212.19,1.72459447]
[1757387312703,116.4,212.25,212.19,1.72459447]
[1757387312902,7.76,212.24,212.19,1.72459447]
[1757387313303,116.4,212.25,212.19,1.72459447]
[1757387313500,7.76,212.24,212.19,1.72459447]
[1757387314003,116.4,212.25,212.19,1.72459447]
[1757387315704,7.76,212.24,212.19,1.72459447]
[1757387316301,118.12459447,212.25,212.19,1.72459447]
[1757387317098,7.76,212.24,212.19,1.72459447]
[1757387317806,118.12459447,212.25,212.19,1.72459447]
[1757387317996,7.76,212.24,212.19,1.72459447]
[1757387318196,118.12459447,212.25,212.19,1.72459447]
[1757387318904,7.76,212.24,212.19,1.72459447]
[1757387319708,118.12459447,212.25,212.19,1.72459447]
[1757387320101,1.72459447,212.25,212.19,1.72459447]
[1757387320802,7.76,212.24,212.19,1.72459447]
[1757387321001,1.72459447,212.25,212.19,1.72459447]
[1757387321298,7.76,212.24,212.19,1.72459447]
[1757387321701,1.72459447,212.25,212.19,1.72459447]
[1757387322100,116.32,212.26,212.19,1.72459447]
[1757387322306,9.48459447,212.25,212.19,1.72459447]
[1757387326312,7.34,212.2,212.13,1.72459447]
[1757387326610,7.34,212.18,212.13,1.72459447]
[1757387326810,1.72459447,212.19,212.13,1.72459447]
[1757387327613,7.34,212.18,212.13,1.72459447]
[1757387327813,1.72459447,212.19,212.13,1.72459447]
[1757387328214,150.0,212.2,212.13,1.72459447]
[1757387328414,9.06459447,212.19,212.13,1.72459447]
[1757387330115,7.34,212.19,212.15,1.72459447]
[1757387330918,150.0,212.2,212.15,4.72459447]
[1757387331311,150.0,212.2,212.15,1.72459447]
[1757387331506,7.34,212.19,212.15,1.72459447]
[1757387331713,150.0,212.2,212.15,1.72459447]
[1757387331913,7.34,212.19,212.15,1.72459447]
[1757387332112,150.0,212.2,212.15,1.72459447]
[1757387333420,7.34,212.19,212.15,1.72459447]
[1757387333619,7.34,212.19,212.13,1.72459447]
[1757387334221,9.06459447,212.19,212.12,3.0]
[1757387334422,9.06459447,212.19,212.13,1.72459447]
[1757387337021,7.34,212.19,212.13,1.72459447]
[1757387337321,7.34,212.19,212.15,4.72459447]
[1757387338322,7.34,212.19,212.16,3.0]
[1757387338720,7.34,212.19,212.15,1.72459447]
[1757387338721,150.0,212.2,212.17,4.72459447]
[1757387339319,150.0,212.2,212.17,1.72459447]
[1757387339517,7.34,212.19,212.17,1.72459447]
[1757387340921,150.0,212.2,212.17,4.72459447]
[1757387341124,150.0,212.2,212.19,1.72459447]
[1757387341326,117.98459447,212.24,212.19,1.72459447]
[1757387341520,7.34,212.23,212.19,1.72459447]
[1757387342025,7.34,212.23,212.18,1.72459447]
[1757387342225,117.98459447,212.24,212.18,1.72459447]
[1757387342926,117.98459447,212.24,212.17,3.0]
[1757387343225,117.98459447,212.24,212.18,1.72459447]
[1757387343422,7.34,212.23,212.18,1.72459447]
[1757387343629,117.98459447,212.24,212.18,1.72459447]
[1757387344121,7.34,212.23,212.18,1.72459447]
[1757387344322,117.98459447,212.24,212.18,1.72459447]
[1757387344527,7.34,212.23,212.18,1.72459447]
[1757387344730,7.34,212.23,212.17,3.0]
[1757387345023,117.98459447,212.24,212.18,1.72459447]
[1757387345228,7.34,212.23,212.18,1.72459447]
[1757387345827,117.98459447,212.24,212.18,1.72459447]
[1757387346028,7.34,212.23,212.18,1.72459447]
[1757387346224,1.72459447,212.2,212.14,1.72459447]
[1757387347125,7.34,212.19,212.14,1.72459447]
[1757387347324,1.72459447,212.2,212.14,1.72459447]
[1757387347528,7.34,212.19,212.14,1.72459447]
[1757387347729,1.72459447,212.18,212.12,1.72459447]
[1757387348230,7.34,212.17,212.12,1.72459447]
[1757387348622,1.72459447,212.18,212.12,1.72459447]
[1757387349028,7.34,212.15,212.05,3.0]
[1757387349224,1.72459447,212.12,212.05,4.72459447]
[1757387349425,1.72459447,212.1,212.02,317.06]
[1757387349630,7.34,212.09,212.03,1.72459447]
[1757387349829,0.03202184,212.11,212.07,1.72459447]
[1757387350026,7.34,212.1,212.07,1.72459447]
[1757387350231,1.72459447,212.09,212.04,0.03050779]
[1757387350427,7.34,212.08,212.04,0.03050779]
[1757387350839,1.72459447,212.09,212.04,0.03050779]
[1757387351031,7.34,212.08,212.04,0.03050779]
[1757387352531,1.72459447,212.07,212.04,0.03050779]
[1757387352728,7.34,212.06,212.04,0.03050779]
[1757387353227,1.72459447,212.07,212.04,0.03050779]
[1757387353532,7.21,212.06,212.04,0.03050779]
[1757387353835,8.93459447,212.05,212.04,0.03050779]
[1757387355135,7.21,212.05,212.04,0.03050779]
[1757387355541,0.03439277,212.07,212.04,1.75510226]
[1757387356342,0.03439277,212.07,212.04,0.03050779]
[1757387356542,0.03439277,212.07,212.05,3.0]
[1757387357143,0.03439277,212.07,212.04,2.72304631]
[1757387357750,7.24439277,212.07,212.04,2.72304631]
[1757387358350,7.21,212.06,212.04,0.03050779]
[1757387359248,0.03439277,212.07,212.04,0.03050779]
[1757387359643,0.03439277,212.07,212.05,3.0]
[1757387360339,0.03439277,212.07,212.04,0.03050779]
[1757387360545,7.21,212.06,212.04,0.03050779]
[1757387362943,0.03439277,212.07,212.04,0.03050779]
[1757387363546,7.21,212.06,212.04,0.03050779]
[1757387363746,0.03439277,212.07,212.04,0.03050779]
[1757387364849,7.21,212.06,212.04,0.03050779]
[1757387365050,0.03439277,212.07,212.04,0.03050779]
[1757387365554,7.21,212.06,212.04,0.03050779]
[1757387365749,0.03439277,212.07,212.04,0.03050779]
[1757387365950,7.21,212.05,212.04,0.03050779]
[1757387375854,0.03439277,212.07,212.04,0.03050779]
[1757387376055,7.24439277,212.07,212.04,3.03050779]
[1757387376252,0.03439277,212.07,212.04,3.03050779]
[1757387376857,7.24439277,212.07,212.04,3.03050779]
[1757387381963,0.03439277,212.07,212.04,0.03050779]
[1757387382157,0.03439277,212.07,212.06,2.99]
[1757387386068,7.41,212.15,212.06,6.16253852]
[1757387386264,7.41,212.15,212.06,5.68253852]
[1757387387266,7.41,212.15,212.08,0.03599666]
[1757387387663,7.41,212.13,212.08,0.03599666]
[1757387388869,2.69253852,212.14,212.08,0.03599666]
[1757387389467,7.41,212.13,212.08,0.03599666]
[1757387389966,2.69253852,212.14,212.08,0.03599666]
[1757387390171,7.41,212.14,212.08,0.03599666]
[1757387396076,5.26849499,212.13,212.08,0.03599666]
[1757387396281,7.41,212.12,212.08,0.03599666]
[1757387396683,5.26849499,212.13,212.08,0.03599666]
[1757387397376,7.41,212.11,212.08,0.03599666]
[1757387397977,5.26849499,212.12,212.08,0.03599666]
[1757387398173,7.41,212.11,212.08,0.03599666]
[1757387398881,5.26849499,212.12,212.08,0.03599666]
[1757387399180,7.41,212.11,212.08,0.03599666]
[1757387399379,5.26849499,212.14,212.08,0.03599666]
[1757387399580,12.67849499,212.15,212.08,0.03599666]
[1757387399981,7.41,212.15,212.08,0.03599666]
[1757387400183,7.41,212.15,212.08,2.72853518]
[1757387402479,7.41,212.15,212.09,2.99]
[1757387403681,7.41,212.15,212.08,0.03599666]
[1757387403886,12.67849499,212.15,212.08,0.03599666]
[1757387407386,7.41,212.15,212.08,0.03599666]
[1757387412890,7.41,212.15,212.08,3.02599666]
[1757387416289,7.41,212.15,212.1,2.69253852]
[1757387416589,7.41,212.15,212.11,2.99]
[1757387417486,13.11849499,212.19,212.11,2.99]
[1757387417692,7.85,212.19,212.13,2.69253852]
[1757387418093,157.85,212.2,212.14,0.03081117]
[1757387418295,5.26849499,212.21,212.16,1.721162]
[1757387418495,7.85,212.21,212.16,1.721162]
[1757387418697,5.26849499,212.22,212.16,1.721162]
[1757387419001,7.85,212.22,212.16,1.721162]
[1757387420602,7.85,212.22,212.2,1.721162]
[1757387421201,155.26849499,212.25,212.2,1.721162]
[1757387421404,7.85,212.24,212.2,1.721162]
[1757387421697,150.0,212.25,212.2,1.721162]
[1757387421999,7.85,212.24,212.2,1.721162]
[1757387423601,13.11849499,212.24,212.2,1.721162]
[1757387423798,5.26849499,212.24,212.2,1.721162]
[1757387424199,7.85,212.23,212.2,1.721162]
[1757387424400,5.26849499,212.24,212.2,1.721162]
[1757387424995,7.85,212.23,212.2,1.721162]
[1757387425195,5.26849499,212.24,212.2,1.721162]
[1757387426098,151.721162,212.25,212.2,1.721162]
[1757387426099,156.98965699,212.25,212.2,1.721162]
[1757387426802,7.85,212.24,212.2,1.721162]
[1757387426997,156.98965699,212.25,212.2,1.721162]
[1757387427198,7.85,212.24,212.2,1.721162]
[1757387427405,13.11849499,212.24,212.2,1.721162]
[1757387427703,5.26849499,212.24,212.2,1.721162]
[1757387427899,7.85,212.23,212.2,1.721162]
[1757387428401,5.26849499,212.24,212.2,1.721162]
[1757387428596,7.85,212.23,212.2,1.721162]
[1757387428998,5.26849499,212.24,212.2,1.721162]
[1757387429197,7.85,212.23,212.2,1.721162]
[1757387429604,5.26849499,212.24,212.2,1.721162]
[1757387429897,7.85,212.23,212.2,1.721162]
[1757387430498,5.26849499,212.24,212.2,1.721162]
[1757387430698,7.85,212.23,212.2,1.721162]
[1757387431206,7.85,212.23,212.2,4.721162]
[1757387432606,150.0,212.25,212.22,4.721162]
[1757387432800,157.85,212.25,212.22,4.721162]
[1757387433308,7.85,212.25,212.22,4.721162]
[1757387433604,7.85,212.25,212.24,1.721162]
[1757387434910,7.85,212.28,212.25,3.0]
[1757387435108,7.85,212.28,212.27,1.721162]
[1757387435607,7.85,212.33,212.27,1.721162]
[1757387436206,7.85,212.33,212.29,1.721162]
[1757387436405,7.85,212.32,212.29,1.721162]
[1757387436808,7.85,212.32,212.31,1.721162]
[1757387438207,7.85,212.32,212.3,1.721162]
[1757387438606,169.50948185,212.35,212.3,1.721162]
[1757387438607,7.85,212.34,212.3,1.721162]
[1757387438802,169.50948185,212.35,212.3,1.721162]
[1757387439004,169.50948185,212.35,212.28,0.03274009]
[1757387439005,7.85,212.34,212.28,0.03274009]
[1757387439303,1.721162,212.33,212.28,0.03274009]
[1757387439508,1.75317868,212.33,212.28,1.75390209]
[1757387439910,7.85,212.32,212.28,1.75390209]
[1757387440309,1.75317868,212.33,212.28,1.75390209]
[1757387440603,7.85,212.32,212.28,1.75390209]
[1757387440909,0.03201668,212.33,212.28,1.75390209]
[1757387441106,7.85,212.32,212.28,1.75390209]
[1757387441306,0.03201668,212.33,212.28,1.75390209]
[1757387441607,7.85,212.32,212.28,1.75390209]
[1757387442109,0.03201668,212.33,212.28,1.75390209]
[1757387442304,7.85,212.32,212.28,1.75390209]
[1757387442608,0.03201668,212.33,212.28,1.75390209]
[1757387443313,7.67,212.32,212.28,1.75390209]
[1757387444002,0.03201668,212.33,212.28,1.75390209]
[1757387444207,7.67,212.32,212.28,1.75390209]
[1757387444405,0.03201668,212.33,212.28,1.75390209]
[1757387445006,7.67,212.32,212.28,1.75390209]
[1757387445611,7.67,212.32,212.28,4.73390209]
[1757387445810,7.70201668,212.33,212.3,1.721162]
[1757387446012,7.67,212.32,212.3,1.721162]
[1757387449411,0.03201668,212.33,212.31,2.98]
[1757387449614,0.03201668,212.33,212.32,4.701162]
[1757387456321,7.67,212.4,212.32,4.701162]
[1757387456520,7.67,212.42,212.37,1.721162]
[1757387456821,1.721162,212.43,212.37,1.721162]
[1757387457212,7.67,212.42,212.37,1.721162]
[1757387457420,1.721162,212.43,212.38,0.03401814]
[1757387458119,7.67,212.44,212.38,0.03401814]
[1757387458419,7.67,212.44,212.39,1.721162]
[1757387459214,150.0,212.45,212.39,1.721162]
[1757387459418,7.67,212.44,212.39,1.721162]
[1757387459918,151.721162,212.45,212.39,1.721162]
[1757387460421,7.67,212.44,212.38,0.03401814]
[1757387460619,151.721162,212.45,212.39,1.721162]
[1757387460817,7.67,212.44,212.38,0.03401814]
[1757387461012,7.67,212.4,212.38,0.03401814]
[1757387462123,1.721162,212.42,212.38,0.03401814]
[1757387462324,7.67,212.41,212.38,0.03401814]
[1757387462812,1.721162,212.42,212.38,0.03401814]
[1757387463019,7.67,212.41,212.38,0.03401814]
[1757387464423,1.721162,212.42,212.38,0.03401814]
[1757387464724,7.67,212.41,212.38,0.03401814]
[1757387464925,1.721162,212.4,212.38,0.03401814]
[1757387465127,7.67,212.39,212.38,0.03401814]
[1757387465625,9.391162,212.39,212.38,0.03401814]
[1757387465825,7.67,212.39,212.38,0.03401814]
[1757387467326,9.391162,212.39,212.26,2.98]
[1757387467522,7.67,212.35,212.29,1.721162]
[1757387468726,1.721162,212.36,212.3,0.03129457]
[1757387469429,7.67,212.35,212.32,3.01]
[1757387469923,115.84,212.41,212.26,1.721162]
[1757387469924,7.67,212.33,212.26,1.721162]
[1757387470223,1.721162,212.34,212.31,0.03463705]
[1757387470530,7.67,212.33,212.31,0.03463705]
[1757387471121,5.26849499,212.4,212.31,0.03463705]
[1757387471122,7.67,212.39,212.31,0.03463705]
[1757387471418,7.67,212.32,212.31,0.03463705]
[1757387471620,7.67,212.32,212.23,4.731162]
[1757387471927,1.721162,212.33,212.23,4.731162]
[1757387471928,7.67,212.29,212.23,4.731162]
[1757387472428,7.67,212.29,212.23,3.01]
[1757387472628,7.67,212.29,212.24,1.721162]
[1757387472829,7.67,212.29,212.25,3.05]
[1757387473030,7.67,212.29,212.24,1.721162]
[1757387473230,7.67,212.29,212.25,3.05]
[1757387474224,7.19,212.31,212.25,3.05]
[1757387475128,1.721162,212.3,212.24,1.721162]
[1757387475825,1.721162,212.34,212.26,1.721162]
[1757387476029,8.911162,212.34,212.28,1.721162]
[1757387476633,7.19,212.34,212.28,1.721162]
[1757387477030,7.19,212.34,212.3,1.721162]
[1757387477234,7.19,212.34,212.3,4.791162]
[1757387477434,7.19,212.34,212.31,3.07]
[1757387478234,7.19,212.34,212.3,1.721162]
[1757387478434,7.19,212.34,212.28,3.07]
[1757387482934,7.19,212.34,212.25,2.68583864]
[1757387483734,7.19,212.34,212.24,5.75583864]
[1757387487737,7.19,212.34,212.25,3.07]
[1757387488542,7.19,212.34,212.27,2.68583864]
[1757387488741,7.19,212.34,212.28,3.07]
[1757387497448,12.45849499,212.34,212.28,3.07]
[1757387498639,12.45849499,212.34,212.24,5.75583864]
[1757387498843,7.19,212.32,212.24,3.07]
[1757387499043,12.45849499,212.32,212.24,3.07]
[1757387499942,7.19,212.32,212.27,3.07]
[1757387500142,7.19,212.32,212.26,2.68583864]
[1757387500644,7.19,212.32,212.26,5.73583864]
[1757387501545,5.26849499,212.35,212.29,2.68583864]
[1757387501845,7.19,212.37,212.33,3.05]
[1757387502049,5.26849499,212.38,212.33,3.05]
[1757387502550,7.19,212.37,212.33,3.05]
[1757387502746,5.26849499,212.38,212.33,3.05]
[1757387503248,7.11,212.37,212.32,2.68583864]
[1757387503441,12.37849499,212.38,212.32,2.68583864]
[1757387503841,7.11,212.38,212.32,2.68583864]
[1757387506650,12.37849499,212.38,212.32,2.68583864]
[1757387507048,12.37849499,212.38,212.31,3.06]
[1757387507253,12.37849499,212.38,212.31,5.74583864]
[1757387507550,7.11,212.38,212.31,5.74583864]
[1757387511050,12.37849499,212.38,212.28,5.74583864]
[1757387511255,7.11,212.35,212.28,2.68583864]
[1757387511650,7.11,212.35,212.29,3.06]
[1757387511852,5.26849499,212.37,212.31,2.68583864]
[1757387512454,7.11,212.38,212.31,2.68583864]
[1757387513150,7.11,212.38,212.32,3.06]
[1757387514051,7.11,212.41,212.34,2.68583864]
[1757387518456,7.11,212.41,212.32,3.06]
[1757387519055,7.11,212.41,212.29,5.74583864]
[1757387520559,7.11,212.4,212.29,5.74583864]
[1757387522359,7.11,212.38,212.29,2.68583864]
[1757387522558,7.11,212.38,212.29,5.74583864]
[1757387525261,7.11,212.38,212.3,3.06]
[1757387525460,7.11,212.41,212.33,3.06]
[1757387526256,7.11,212.41,212.35,5.74583864]
[1757387527160,7.11,212.41,212.35,3.06]
[1757387530567,7.11,212.41,212.35,5.74583864]
[1757387533667,7.90274249,212.45,212.36,3.07]
[1757387533868,7.58,212.5,212.42,3.07]
[1757387534071,7.58,212.5,212.44,2.68583864]
[1757387534364,7.58,212.52,212.41,44.38583864]
[1757387534571,7.58,212.52,212.42,8.76999544]
[1757387534775,7.58,212.52,212.43,4.63510936]
[1757387534965,7.58,212.52,212.41,2.68583864]
[1757387535166,7.58,212.52,212.42,8.76999898]
[1757387535369,7.58,212.52,212.43,8.76999898]
[1757387535567,7.58,212.52,212.41,2.68583864]
[1757387535769,7.58,212.52,212.42,8.98358038]
[1757387535975,7.58,212.52,212.43,8.98358038]
[1757387536168,7.58,212.52,212.41,2.68583864]
[1757387536364,7.58,212.52,212.42,8.98279484]
[1757387536569,7.58,212.52,212.43,8.98279484]
[1757387536769,7.90274249,212.54,212.41,2.68583864]
[1757387536974,7.58,212.53,212.42,8.97847488]
[1757387537169,7.58,212.53,212.43,8.97847488]
[1757387537374,7.58,212.53,212.42,3.07]
[1757387537571,15.48274249,212.53,212.42,3.07]
[1757387539665,7.58,212.51,212.41,2.68583864]
[1757387539866,0.03157983,212.5,212.41,2.68583864]
[1757387540072,7.93432232,212.5,212.38,122.29583864]
[1757387540274,7.58,212.49,212.38,122.29583864]
[1757387540474,7.58,212.47,212.41,1.71728493]
[1757387540674,7.58,212.47,212.41,1.75052288]
[1757387540976,7.58,212.45,212.41,1.75052288]
[1757387541380,0.03575139,212.46,212.41,1.75052288]
[1757387541675,7.58,212.45,212.41,1.75052288]
[1757387542073,0.03575139,212.46,212.41,1.75052288]
[1757387542275,7.58,212.45,212.41,1.75052288]
[1757387543377,7.58,212.45,212.41,4.82052288]
[1757387543773,0.03575139,212.46,212.41,1.75052288]
[1757387543972,0.03575139,212.46,212.43,4.78728493]
[1757387544177,0.03575139,212.46,212.45,1.71728493]
[1757387545270,0.03575139,212.46,212.45,4.78728493]
[1757387545773,0.03575139,212.46,212.45,1.71728493]
[1757387546278,0.03575139,212.46,212.45,4.78728493]
[1757387546681,0.03575139,212.46,212.45,1.71728493]
[1757387546886,7.61575139,212.46,212.43,1.71728493]
[1757387548384,7.58,212.45,212.43,1.71728493]
[1757387550084,7.58,212.45,212.41,0.03323795]
[1757387551278,1.75303632,212.46,212.41,0.03323795]
[1757387551589,7.58,212.44,212.41,0.03323795]
[1757387551790,7.58,212.45,212.41,0.03323795]
[1757387552188,1.75303632,212.46,212.41,0.03323795]
[1757387552382,7.58,212.45,212.41,0.03323795]
[1757387552792,1.75303632,212.46,212.41,0.03323795]
[1757387552984,7.58,212.45,212.41,0.03323795]
[1757387553187,1.75303632,212.46,212.41,0.03323795]
[1757387553388,7.58,212.45,212.41,0.03323795]
[1757387553787,1.75303632,212.46,212.41,0.03323795]
[1757387553987,7.58,212.45,212.41,0.03323795]
[1757387554690,1.75303632,212.46,212.41,1.75052288]
[1757387555284,7.58,212.45,212.41,1.75052288]
[1757387555593,0.03575139,212.46,212.41,1.75052288]
[1757387555796,7.58,212.45,212.41,1.75052288]
[1757387556096,0.03575139,212.46,212.41,1.75052288]
[1757387556296,7.58,212.45,212.41,1.75052288]
[1757387556495,0.03575139,212.46,212.41,1.75052288]
[1757387556797,7.58,212.45,212.41,1.75052288]
[1757387557092,7.58,212.45,212.41,4.82052288]
[1757387557285,0.03575139,212.46,212.41,4.82052288]
[1757387557490,7.58,212.45,212.41,4.82052288]
[1757387557998,7.61575139,212.46,212.43,1.71728493]
[1757387558197,7.61575139,212.46,212.43,4.78728493]
[1757387559295,7.58,212.45,212.43,1.71728493]
[1757387562300,0.03575139,212.46,212.43,4.77728493]
[1757387562600,7.61575139,212.46,212.43,3.06]
[1757387563100,7.58,212.45,212.42,117.89728493]
[1757387563300,7.58,212.45,212.43,4.73061725]
[1757387563500,7.58,212.45,212.42,120.94728493]
[1757387563701,7.58,212.45,212.43,4.73105621]
[1757387563902,7.58,212.45,212.42,120.94728493]
[1757387564101,7.58,212.45,212.43,4.7310462]
[1757387564302,7.58,212.45,212.42,120.94728493]
[1757387564502,0.03575139,212.46,212.43,7.78118402]
[1757387564704,7.62575139,212.46,212.43,3.05]
[1757387564904,0.03575139,212.46,212.44,6.44844567]
[1757387565199,0.03575139,212.46,212.44,4.76728493]
[1757387565602,0.03575139,212.46,212.45,3.05]
[1757387565801,0.03575139,212.46,212.44,4.76728493]
[1757387566403,7.62575139,212.46,212.44,117.83728493]
[1757387567099,7.62575139,212.46,212.41,3.08323795]
[1757387567100,7.59,212.45,212.41,1.75052288]
[1757387567307,1.75303632,212.46,212.41,0.03323795]
[1757387567506,7.59,212.45,212.41,0.03323795]
[1757387568005,1.75303632,212.46,212.41,0.03323795]
[1757387568196,7.59,212.45,212.41,0.03323795]
[1757387569001,1.75303632,212.46,212.41,0.03323795]
[1757387569201,7.59,212.45,212.41,0.03323795]
[1757387569901,1.75303632,212.46,212.41,0.03323795]
[1757387570108,7.59,212.45,212.41,0.03323795]
[1757387570502,7.59,212.44,212.41,0.03323795]
[1757387570702,7.62575139,212.46,212.42,3.05]
[1757387570903,0.03575139,212.46,212.43,4.76728493]
[1757387571103,7.59,212.45,212.41,1.75052288]
[1757387571309,0.03575139,212.46,212.41,1.75052288]
[1757387571509,7.59,212.45,212.41,1.75052288]
[1757387571709,7.59,212.45,212.41,4.80052288]
[1757387571904,0.03575139,212.46,212.41,120.94052288]
[1757387572310,7.59,212.45,212.41,120.94052288]
[1757387572511,0.03575139,212.46,212.41,120.94052288]
[1757387573211,7.59,212.45,212.41,120.94052288]
[1757387573507,0.03575139,212.46,212.41,120.94052288]
[1757387574108,7.59,212.45,212.42,8.77710409]
[1757387574309,7.59,212.45,212.43,8.77891695]
[1757387574501,7.59,212.45,212.41,4.80052288]
[1757387574701,7.59,212.45,212.42,8.7792596]
[1757387574909,7.59,212.45,212.42,3.05]
[1757387575209,0.03575139,212.46,212.42,4.76728493]
[1757387575413,7.59,212.45,212.42,4.76728493]
[1757387576209,7.59,212.45,212.43,8.78244638]
[1757387576409,7.59,212.45,212.42,4.76728493]
[1757387576607,7.59,212.45,212.41,0.03323795]
[1757387577108,0.03575139,212.46,212.41,0.03323795]
[1757387577410,0.03575139,212.46,212.42,8.7872791]
[1757387577613,7.59,212.45,212.41,0.03323795]
[1757387577912,7.59,212.45,212.42,4.20577078]
[1757387578112,7.59,212.45,212.41,0.03323795]
[1757387578309,0.03575139,212.46,212.42,4.20577078]
[1757387578612,7.59,212.45,212.41,0.03323795]